fUSD/lending_fUSD_20240531
["ID","MTS","AMOUNT","RATE_DAILY","PERIOD"]
[328343276,1717194633422,-277.7627711,0.00024799,2]
[328343277,1717194633431,-277.76277107,0.00024799,2]
[328343278,1717194633441,-277.76277107,0.00024799,2]
[328343279,1717194633451,-277.76277107,0.00024799,2]
[328343280,1717194633460,-277.76277107,0.00024799,2]
[328343281,1717194633469,-6608.00638486,0.000249,2]
[328343282,1717194633482,-175.3096018,0.000249,2]
[328343283,1717194633492,-186.67443881,0.000249,2]
[328343284,1717194633501,-468.88,0.00024913,2]
[328343285,1717194633511,-65.54428471,0.0002499,2]
[328343286,1717194633527,-247.30209876,0.00024788,2]
[328343287,1717194633536,-89.48571529,0.0002499,2]
[328343288,1717194633545,-173.0,0.00025,2]
[328343289,1717194633554,-8692.53325077,0.00025,2]
[328343299,1717194638162,-259.3225666,0.00024797,2]
[328343300,1717194638172,-443.17576937,0.00024797,2]
[328343301,1717194638182,-21.75911489,0.00025,2]
[328343302,1717194638250,-3385.96953395,0.00025,2]
[328343303,1717194638263,-1140.80910589,0.00025,2]
[328343304,1717194638274,-1599.77159946,0.00025,2]
[328343305,1717194638286,-3730.36434643,0.00025,2]
[328343306,1717194638297,-8449.0,0.00025,2]
[328343307,1717194638308,-4962.52051354,0.00025,2]
[328343308,1717194638352,-6101.07978838,0.00025,2]
[328343309,1717194638365,-90509.78900117,0.00025,2]
[328343310,1717194638377,-3209.94494954,0.00025,2]
[328343311,1717194638390,-5897.93599999,0.00025,2]
[328343312,1717194638447,-408.81727135,0.00025,2]
[328343313,1717194638458,-2390.55985511,0.00025,2]
[328343314,1717194638470,-3304.7964,0.00025,2]
[328343315,1717194638481,-996.7313497,0.00025,2]
[328343316,1717194638533,-5731.89280292,0.00025,2]
[328343332,1717194641055,-960.70935574,0.00025,2]
[328343333,1717194641067,-577.17654166,0.00025,2]
[328343334,1717194641159,-46761.22174685,0.00025,2]
[328343335,1717194641171,-150191.32490955,0.00025,2]
[328343336,1717194641268,-2229.8616526,0.00025,2]
[328343356,1717194643395,-22811.2556329,0.00025,2]
[328343357,1717194643493,-5368.05417489,0.00025,2]
[328343358,1717194643505,-547.59336367,0.00025,2]
[328343359,1717194643588,-306.856,0.00025,2]
[328343360,1717194643600,-30416.96491147,0.00025,2]
[328343361,1717194643611,-4285.24335669,0.00025,2]
[328343362,1717194643622,-1755.1934873,0.00025,2]
[328343363,1717194643633,-33113.26998359,0.00025,2]
[328343364,1717194643642,-928.48620822,0.00025,2]
[328343365,1717194643651,-224.73219241,0.00025,2]
[328343366,1717194643660,-1000.0,0.00025205,2]
[328343367,1717194643669,-1000.0,0.00025225,2]
[328343368,1717194643678,-742.71,0.00025258,2]
[328343369,1717194643687,-394.24,0.00025587,2]
[328343370,1717194643696,-174.0,0.0002589,2]
[328343371,1717194643706,-218.04,0.0002589,2]
[328343372,1717194643715,-40911.48037818,0.00026003,2]
[328343373,1717194643725,-277.76277107,0.00026004,2]
[328343374,1717194643734,-150.0,0.00026079,2]
[328343375,1717194643743,-54807.71,0.00026301,2]
[328343376,1717194643753,-167.7423372,0.00026499,2]
[328343377,1717194643762,-167.0,0.00026599,2]
[328343378,1717194643771,-3448.35,0.00027123,2]
[328343379,1717194643781,-468.88,0.00027177,2]
[328343380,1717194643790,-243.37243076,0.0002739,2]
[328343381,1717194643799,-374.95,0.000274,2]
[328343382,1717194643808,-374.95,0.000274,2]
[328343383,1717194643817,-374.95,0.000274,2]
[328343384,1717194643826,-374.95,0.000274,2]
[328343385,1717194643836,-374.95,0.000274,2]
[328343386,1717194643845,-167.0,0.00027477,2]
[328343387,1717194643854,-1000.0,0.00027747,2]
[328343388,1717194643864,-742.71,0.00027783,2]
[328343389,1717194643873,-10649.5653107,0.00027802,2]
[328343404,1717194646210,-1313.38735697,0.00017259,2]
[328343405,1717194646220,-20057.8547385,0.00027802,2]
[328343406,1717194646615,-9094.52178367,0.00027802,2]
[328343407,1717194646628,-1109.53854531,0.00027802,2]
[328343409,1717194646637,-277.76277107,0.00027803,2]
[328343410,1717194646646,-167.0,0.00028355,2]
[328343412,1717194646655,-2653.16427504,0.000288,2]
[328343414,1717194646665,-167.0,0.00029233,2]
[328343416,1717194646675,-468.88,0.00029441,2]
[328343418,1717194646684,-1047.97609803,0.00029602,2]
[328343421,1717194646695,-11180.0,0.00029602,2]
[328343424,1717194646707,-862.600002,0.00029602,2]
[328343427,1717194646719,-5086.00544997,0.00029602,2]
[328343446,1717194845423,-155.0,0.00016009,2]
[328343447,1717194845444,-410.5918966,0.00016009,2]
[328343448,1717194845465,-155.0,0.0001601,2]
[328343449,1717194845486,-209.1055224,0.0001601,2]
[328343450,1717194845508,-205.30156829,0.00016011,2]
[328343451,1717194845530,-282.43739626,0.00016011,2]
[328343452,1717194845719,-505.85074532,0.00016011,2]
[328343453,1717194845740,-155.0,0.00016012,2]
[328343454,1717194845776,-4752.71775907,0.00016014,2]
[328343455,1717194845800,-257.59311156,0.00016019,2]
[328343456,1717194845823,-1802.99661447,0.000165,2]
[328343457,1717194845846,-156.23196643,0.00017259,2]
[328343458,1717194845868,-233.88804131,0.0002,2]
[328343459,1717194845891,-61.28537829,0.0002,2]
[328343461,1717195156609,618.13,0.00033151,120]
[328343462,1717195535214,-1469.32147917,0.00017019,2]
[328343478,1717195832387,-162.3456247,0.00016808,2]
[328343480,1717195832397,-235.22228841,0.00016808,2]
[328343482,1717195832409,-935.25814264,0.00016808,2]
[328343483,1717195832421,-212.98937051,0.00016808,2]
[328343484,1717195832430,-209.1055224,0.00016809,2]
[328343485,1717195832439,-1802.99661447,0.00016809,2]
[328343486,1717195832449,-2229.52652755,0.0001681,2]
[328343487,1717195832460,-1786.70215963,0.00016811,2]
[328343488,1717195832474,-442.8243679,0.00016811,2]
[328343489,1717195832483,-2229.52652753,0.00016811,2]
[328343490,1717195832493,-1045.47618149,0.00017019,2]
[328343491,1717195832503,-1236.74291656,0.00017225,2]
[328343492,1717195832511,-150.0,0.00017233,2]
[328343493,1717195832521,-562.1680965,0.00017259,2]
[328343494,1717195832530,-203.52076681,0.00017259,2]
[328343495,1717195832542,-181.77,0.00017259,2]
[328343496,1717195832551,-499.99,0.0001726,2]
[328343497,1717195832560,-362.77,0.00017534,2]
[328343498,1717195832570,-452.8,0.00017622,2]
[328343499,1717195832579,-57.2415837,0.00018,2]
[328343500,1717195832591,-1053.40842538,0.00018,2]
[328343501,1717195832600,-411.07546451,0.00019451,2]
[328343502,1717195832609,-250.0,0.00019599,2]
[328343503,1717195832618,-195.77,0.00019838,2]
[328343504,1717195832627,-500.0,0.00019849,2]
[328343505,1717195832637,-452.8,0.00019886,2]
[328343506,1717195832647,-1000.0,0.00019987,2]
[328343507,1717195832656,-251.23012888,0.00019999,2]
[328343508,1717195832667,-550.35526376,0.0002,2]
[328343509,1717195832677,-158.77642645,0.0002,2]
[328343510,1717195832687,-155.0,0.0002,2]
[328343511,1717195832697,-155.0,0.0002,2]
[328343512,1717195832706,-1761.06242246,0.0002,2]
[328343513,1717195832715,-4943.8787718,0.0002,2]
[328343514,1717195832928,-510.21195869,0.0002,2]
[328343515,1717195832939,-634.6549469,0.0002,2]
[328343517,1717195832948,-682.1574284,0.0002,2]
[328343519,1717195832957,-155.0,0.0002,2]
[328343521,1717195832966,-218.61371265,0.0002,2]
[328343523,1717195832976,-19149.62,0.00020044,2]
[328343525,1717195832984,-200.0,0.00020069,2]
[328343527,1717195832994,-226.49538654,0.000201,2]
[328343529,1717195833003,-1438.80918398,0.00021,2]
[328343531,1717195833011,-291.31,0.00021004,2]
[328343533,1717195833020,-291.31,0.00021009,2]
[328343535,1717195833029,-291.31,0.00021015,2]
[328343536,1717195833038,-291.31,0.0002102,2]
[328343537,1717195833047,-291.31,0.00021026,2]
[328343538,1717195833056,-291.31,0.00021031,2]
[328343539,1717195833065,-291.31,0.00021037,2]
[328343540,1717195833074,-291.31,0.00021043,2]
[328343541,1717195833083,-291.31,0.00021048,2]
[328343542,1717195833092,-291.31,0.00021054,2]
[328343543,1717195833101,-291.31,0.00021059,2]
[328343544,1717195833112,-291.31,0.00021065,2]
[328343545,1717195833121,-291.31,0.0002107,2]
[328343546,1717195833131,-291.31,0.00021076,2]
[328343547,1717195833141,-291.31,0.00021081,2]
[328343548,1717195833152,-291.31,0.00021087,2]
[328343549,1717195833161,-291.31,0.00021092,2]
[328343550,1717195833170,-291.31,0.00021098,2]
[328343551,1717195833180,-291.31,0.00021103,2]
[328343552,1717195833189,-291.31,0.00021109,2]
[328343553,1717195833217,-1325.13849188,0.000219,2]
[328343554,1717195833227,-157.99099858,0.0002191,2]
[328343555,1717195833236,-413.57156892,0.0002191,2]
[328343556,1717195833246,-176.68238189,0.0002191,2]
[328343557,1717195833256,-1243.95829621,0.0002191,2]
[328343558,1717195833266,-203.90349389,0.0002191,2]
[328343559,1717195833275,-156.33104548,0.0002191,2]
[328343560,1717195833284,-155.0,0.0002191,2]
[328343561,1717195833293,-618.13,0.00021918,2]
[328343562,1717195833303,-2000.0,0.00021918,2]
[328343563,1717195833312,-178.57,0.00021918,2]
[328343564,1717195833323,-250.0,0.00021918,2]
[328343565,1717195833332,-321055.18134243,0.00021999,2]
[328343566,1717195833345,-789.02916967,0.00022,2]
[328343567,1717195833355,-9014.24515507,0.00022,2]
[328343568,1717195833364,-452.8,0.0002215,2]
[328343569,1717195833373,-1000.0,0.00022486,2]
[328343570,1717195833382,-7981.04941925,0.000225,2]
[328343571,1717195833400,-2699.17360724,0.000225,2]
[328343572,1717195833409,-1202.44786102,0.00023457,2]
[328343573,1717195833419,-186.6744388,0.00023514,2]
[328343574,1717195833428,-2489.48222848,0.000236,2]
[328343575,1717195833439,-456.76620795,0.000236,2]
[328343576,1717195833450,-850.0,0.000236,2]
[328343577,1717195833465,-564.72049553,0.000236,2]
[328343578,1717195833477,-9050.3498805,0.000236,2]
[328343579,1717195833489,-1479.4257306,0.000236,2]
[328343580,1717195833500,-2592.31585,0.000236,2]
[328343581,1717195833511,-17461.60646805,0.000236,2]
[328343582,1717195833522,-642.3977412,0.000236,2]
[328343583,1717195833533,-300.6296171,0.000236,2]
[328343584,1717195833545,-997.8724334,0.000236,2]
[328343585,1717195838364,-411.07546451,0.00019,2]
[328343586,1717195838374,-83855.99210679,0.000236,2]
[328343587,1717195838386,-1674.47444934,0.000236,2]
[328343588,1717195838464,-656.6164223,0.000236,2]
[328343589,1717195838477,-167.0,0.00023614,2]
[328343590,1717195838487,-198.028393,0.00023995,2]
[328343591,1717195838497,-157.99916562,0.00023995,2]
[328343592,1717195838507,-417.45255306,0.00023995,2]
[328343593,1717195838518,-155.0,0.00023995,2]
[328343594,1717195838527,-227.29916105,0.00023995,2]
[328343595,1717195838537,-268.32530534,0.00023996,2]
[328343596,1717195838548,-256.50802639,0.00024,2]
[328343597,1717195838560,-177.32820096,0.00024,2]
[328343598,1717195838570,-473.22827161,0.00024,2]
[328343599,1717195838579,-180.0,0.0002423,2]
[328343600,1717195838589,-153.69,0.00024384,2]
[328343601,1717195838599,-158.03,0.00024384,2]
[328343602,1717195838609,-452.8,0.00024414,2]
[328343603,1717195838619,-164.86806584,0.00024789,2]
[328343604,1717195838628,-189.93247259,0.00024797,2]
[328343605,1717195838638,-5057.31106122,0.00024798,2]
[328343609,1717195841521,-406.7734298,0.00024798,2]
[328343610,1717195841533,-16199.17352633,0.00024798,2]
[328343611,1717195841542,-2127.18287369,0.00024798,2]
[328343612,1717195841554,-495.41790185,0.00024798,2]
[328343613,1717195841565,-310.72,0.00024798,2]
[328343614,1717195842647,-513.48021401,0.00024798,2]
[328343615,1717195842690,-1333.99259996,0.00024798,2]
[328343616,1717195842701,-2046.97331958,0.00024798,2]
[328343617,1717195842753,-2723.68358874,0.00024798,2]
[328343618,1717195842858,-840.71707407,0.00024798,2]
[328343627,1717195843440,-11271.09044544,0.00024798,2]
[328343628,1717195843449,-4266.50898124,0.00024798,2]
[328343629,1717195843461,-13614.2006,0.00024798,2]
[328343630,1717195843472,-3782.5484361,0.00024798,2]
[328343631,1717195843482,-2658.7632572,0.00024799,2]
[328343632,1717195843491,-1128.48830667,0.00024799,2]
[328343633,1717195843537,-506.26761822,0.00024799,2]
[328343634,1717195843548,-1024.00733225,0.00024799,2]
[328343635,1717195843558,-2658.76325714,0.00024799,2]
[328343636,1717195843568,-6783.31598666,0.000249,2]
[328343637,1717195843578,-167.0,0.00024913,2]
[328343638,1717195843587,-1000.0,0.00024984,2]
[328343639,1717195843597,-2813.03132929,0.00024992,2]
[328343640,1717195843606,-221.48704095,0.00024993,2]
[328343641,1717195843616,-831.30279517,0.00024993,2]
[328343642,1717195843644,-11965.51997061,0.00024993,2]
[328343643,1717195843655,-201.0899111,0.00024995,2]
[328343644,1717195843666,-184.5047889,0.00024995,2]
[328343645,1717195843676,-13590.78478667,0.00024995,2]
[328343646,1717195843686,-266.56703532,0.00024995,2]
[328343647,1717195843697,-195.42376414,0.00024995,2]
[328343648,1717195843707,-358.96666283,0.00024996,10]
[328343649,1717195843717,-769.35724101,0.00024996,2]
[328343650,1717195843728,-1768.81581837,0.00024996,2]
[328343651,1717195843737,-928.04995485,0.00025,2]
[328343652,1717195843747,-327.82411917,0.00025,2]
[328343653,1717195843756,-1274.3184443,0.00025,2]
[328343654,1717195843765,-155.0,0.00025,2]
[328343655,1717195843774,-155.0,0.00025,2]
[328343656,1717195843784,-155.92992075,0.00025,2]
[328343657,1717195843793,-1050.0,0.00025,2]
[328343658,1717195843802,-481.56,0.00025205,2]
[328343659,1717195843811,-195.77,0.00025317,2]
[328343660,1717195843820,-2658.76325714,0.00025667,2]
[328343661,1717195843829,-11623.58692544,0.00025667,2]
[328343662,1717195843841,-10039.6710919,0.00025667,2]
[328343663,1717195843850,-167.0,0.00026212,2]
[328343664,1717195843860,-452.8,0.00026678,2]
[328343665,1717195843869,-2658.76325714,0.00026922,2]
[328343666,1717195843879,-4325.96107196,0.00026922,2]
[328343667,1717195843892,-17337.29694538,0.00026922,2]
[328343668,1717195843902,-154.79,0.0002699,2]
[328343669,1717195843913,-1100.0,0.00027,2]
[328343670,1717195843925,-11026.09755158,0.00027,2]
[328343671,1717195843935,-115611.78992179,0.00027,2]
[328343672,1717195843954,-842.7100002,0.00027,2]
[328343673,1717195843965,-2345.80834095,0.00027,2]
[328343674,1717195843979,-2054.96,0.00027,2]
[328343675,1717195843990,-2341.34282718,0.00027,2]
[328343681,1717195846667,-200.74594451,0.00023598,2]
[328343682,1717195846677,-212.62810351,0.00024797,2]
[328343683,1717195846686,-7538.61369633,0.00027,2]
[328343684,1717195846696,-813.03672237,0.0002739,2]
[328343685,1717195846706,-2654.0,0.000274,2]
[328343686,1717195846716,-217.16330698,0.000274,2]
[328343687,1717195846728,-241.43669302,0.000274,2]
[328343688,1717195846738,-458.6,0.000274,2]
[328343689,1717195846748,-205.69102455,0.000274,2]
[328343690,1717195846759,-252.90897545,0.000274,2]
[328343691,1717195846768,-66.574808,0.000274,2]
[328343692,1717195846791,-392.025192,0.000274,2]
[328343693,1717195846801,-588.32230608,0.00027482,2]
[328343694,1717195846813,-411.67769392,0.00027482,2]
[328343695,1717195846824,-167.0,0.00027511,2]
[328343696,1717195846834,-2658.76325714,0.00028178,2]
[328343697,1717195846844,-7721.96063794,0.00028178,2]
[328343698,1717195846857,-296.26673161,0.00028178,2]
[328343699,1717195846868,-306.21779093,0.00028178,2]
[328343700,1717195846880,-483.87719183,0.00028178,2]
[328343702,1717196264030,187.0,0.00034809,30]
[328343708,1717196756174,-620.00333459,0.00015073,2]
[328343709,1717196756193,-364.89182345,0.00015074,2]
[328343710,1717196756213,-155.0,0.00015074,2]
[328343711,1717196756233,-358.07255743,0.00015074,2]
[328343712,1717196831108,-155.0,0.00015069,2]
[328343713,1717196831131,-325.46904445,0.0001507,2]
[328343714,1717196831152,-155.0,0.00015071,2]
[328343715,1717196831172,-244.24855849,0.00015074,2]
[328343737,1717197031611,-209.1055224,0.00014962,2]
[328343738,1717197031621,-51.68921241,0.00014962,2]
[328343739,1717197031734,-4390.04250886,0.00014962,2]
[328343740,1717197031746,-14265.37423026,0.00014962,2]
[328343741,1717197031757,-169.09819884,0.00014965,2]
[328343742,1717197031766,-620.00333459,0.00015,2]
[328343743,1717197031775,-325.46904445,0.00015071,2]
[328343744,1717197031784,-803.0,0.00015072,2]
[328343745,1717197031793,-328.34116078,0.00015073,2]
[328343746,1717197031803,-796.79476507,0.00015074,2]
[328343747,1717197031812,-8272.90123787,0.00015074,2]
[328343748,1717197031828,-16046.73382465,0.00015074,2]
[328343749,1717197031872,-13216.08311498,0.00015074,2]
[328343750,1717197031882,-1045.47618149,0.00015074,2]
[328343751,1717197031892,-187.41812084,0.00015078,2]
[328343752,1717197031905,-363.88203839,0.00015078,2]
[328343753,1717197031915,-309.452495,0.00015079,2]
[328343754,1717197031924,-333.0028229,0.00015315,2]
[328343755,1717197031933,-155.81209745,0.00015315,2]
[328343756,1717197031942,-300.0,0.0001681,2]
[328343757,1717197031953,-893.12,0.0001681,2]
[328343758,1717197031962,-259.70826703,0.00017,2]
[328343759,1717197031972,-576.97713249,0.00017015,2]
[328343760,1717197031981,-224.27254649,0.00017015,2]
[328343761,1717197031992,-162.77963709,0.00017015,2]
[328343762,1717197032001,-252.89515552,0.00017016,2]
[328343763,1717197032010,-221.48704095,0.00017017,2]
[328343764,1717197032019,-2813.03132929,0.00017017,2]
[328343765,1717197032029,-293.14644748,0.00017017,2]
[328343766,1717197032038,-155.33547321,0.00017017,2]
[328343767,1717197032046,-205.13280041,0.00017017,2]
[328343768,1717197032056,-157.20334897,0.00017017,2]
[328343769,1717197032065,-189.05999598,0.00017018,2]
[328343770,1717197032075,-750.53445726,0.00017018,2]
[328343771,1717197032084,-831.30279517,0.00017018,2]
[328343772,1717197032093,-411.07546451,0.00019,2]
[328343773,1717197032102,-2044.0,0.000199,2]
[328343774,1717197032111,-256.59095034,0.0002,2]
[328343775,1717197032121,-155.0,0.0002,2]
[328343776,1717197032130,-158.77642645,0.0002,2]
[328343777,1717197032139,-226.49538654,0.000201,2]
[328343778,1717197032149,-435.67,0.00021829,2]
[328343779,1717197032159,-834.25577502,0.00021898,2]
[328343780,1717197032168,-186.23625891,0.00021998,2]
[328343781,1717197032177,-580.39973712,0.00022,2]
[328343782,1717197032186,-9014.24515507,0.00022,2]
[328343783,1717197032195,-150.0,0.00023273,2]
[328343784,1717197032205,-250.0,0.00023308,2]
[328343785,1717197032214,-1936.65,0.00023423,2]
[328343786,1717197032224,-1000.0,0.00023564,2]
[328343787,1717197032234,-150.68,0.00023564,2]
[328343788,1717197032243,-250.0,0.00023572,2]
[328343789,1717197032252,-585.89,0.00023572,2]
[328343790,1717197032261,-5574.67,0.00023773,2]
[328343791,1717197032271,-2000.0,0.00023873,2]
[328343792,1717197032280,-175.33,0.00023916,2]
[328343793,1717197032289,-242.37,0.00023937,2]
[328343794,1717197032298,-473.22827161,0.00024,2]
[328343795,1717197032307,-433.45227319,0.00024,2]
[328343796,1717197032317,-1391.85,0.00024014,2]
[328343797,1717197032327,-250.0,0.00024054,2]
[328343798,1717197032336,-500.0,0.00024061,2]
[328343799,1717197032346,-435.67,0.00024093,2]
[328343800,1717197032355,-515.67,0.00024234,2]
[328343801,1717197032364,-23890.0,0.0002427,2]
[328343802,1717197032374,-515.67,0.00024301,2]
[328343803,1717197032383,-200.0,0.00024344,2]
[328343804,1717197032392,-515.67,0.00024367,2]
[328343805,1717197032401,-158.66,0.00024384,2]
[328343806,1717197032410,-157.6,0.00024384,2]
[328343807,1717197032419,-515.67,0.00024434,2]
[328343808,1717197032428,-515.67,0.000245,2]
[328343809,1717197032438,-515.67,0.00024567,2]
[328343810,1717197032447,-515.67,0.00024633,2]
[328343811,1717197032456,-515.67,0.000247,2]
[328343812,1717197032463,-515.67,0.00024766,2]
[328343813,1717197032473,-257.3786,0.000248,2]
[328343814,1717197032482,-3747.4186,0.000248,2]
[328343815,1717197032491,-515.67,0.00024833,2]
[328343816,1717197032500,-515.67,0.00024899,2]
[328343817,1717197032510,-6783.31598666,0.000249,2]
[328343818,1717197032519,-515.67,0.00024966,2]
[328343819,1717197032528,-167.34,0.00024989,2]
[328343820,1717197032537,-223.93744377,0.00025,2]
[328343821,1717197032547,-155.0,0.00025,2]
[328343822,1717197032556,-155.0,0.00025,2]
[328343823,1717197032565,-1274.3184443,0.00025,2]
[328343824,1717197032575,-1050.0,0.00025,2]
[328343825,1717197032584,-167.0,0.00025003,2]
[328343826,1717197032594,-515.67,0.00025032,2]
[328343827,1717197032603,-515.67,0.00025098,2]
[328343828,1717197032612,-515.67,0.00025165,2]
[328343829,1717197032621,-515.67,0.00025231,2]
[328343830,1717197032630,-515.67,0.00025298,2]
[328343831,1717197032639,-515.67,0.00025364,2]
[328343832,1717197032649,-515.67,0.00025431,2]
[328343833,1717197032659,-515.67,0.00025497,2]
[328343834,1717197032668,-180.0,0.00025601,2]
[328343835,1717197032678,-167.34,0.00026021,2]
[328343836,1717197032687,-150.68,0.00026304,2]
[328343837,1717197032697,-435.67,0.00026357,2]
[328343838,1717197032706,-167.0,0.00026379,2]
[328343839,1717197032716,-1000.0,0.00026509,2]
[328343840,1717197032725,-4021.482568,0.00027,2]
[328343841,1717197032734,-1100.0,0.00027,2]
[328343842,1717197032744,-167.34,0.00027052,2]
[328343843,1717197032754,-243.37243076,0.0002739,2]
[328343844,1717197032763,-828.98,0.00027397,2]
[328343845,1717197032772,-929.85231126,0.00027612,2]
[328343846,1717197032782,-167.0,0.00027754,2]
[328343847,1717197032791,-1250.14015,0.000279,2]
[328343848,1717197032802,-6513.4392,0.00028078,2]
[328343849,1717197032811,-167.34,0.00028083,2]
[328343850,1717197032821,-155.20563374,0.00028175,2]
[328343851,1717197032834,-155.20994914,0.00028176,2]
[328343852,1717197032843,-784.86411314,0.00028176,2]
[328343853,1717197032853,-354.22479058,0.00028176,2]
[328343854,1717197032862,-155.0,0.00028176,2]
[328343855,1717197032871,-204.45805828,0.00028176,2]
[328343856,1717197032880,-162.44741274,0.00028177,2]
[328343857,1717197032889,-312.43037364,0.00028177,2]
[328343858,1717197032898,-156.94786222,0.00028177,2]
[328343859,1717197032908,-21858.39340886,0.00028178,2]
[328343860,1717197032918,-2000.0,0.00028178,2]
[328343861,1717197032927,-200.0,0.00028178,2]
[328343862,1717197032936,-200.0,0.0002846,2]
[328343863,1717197032945,-435.67,0.0002862,2]
[328343864,1717197032954,-478.49,0.0002879,2]
[328343865,1717197032964,-329.16261617,0.00028799,2]
[328343866,1717197032973,-910.0,0.000288,2]
[328343867,1717197032982,-158024.5817,0.000288,2]
[328343868,1717197032991,-4160.1495,0.000288,2]
[328343869,1717197033000,-1280.1354,0.000289,2]
[328343870,1717197033009,-8161.2784,0.000289,2]
[328343871,1717197033018,-256.4669063,0.0002899,2]
[328343872,1717197033027,-478.49,0.0002899,2]
[328343873,1717197033036,-478.49,0.0002899,2]
[328343874,1717197033045,-5000.0,0.00029,7]
[328343875,1717197033055,-1485.47796211,0.00029,2]
[328343876,1717197033063,-1036.2139694,0.00029,2]
[328343877,1717197033073,-297867.48221686,0.00029,2]
[328343878,1717197033082,-1150.0,0.00029,2]
[328343879,1717197033092,-150.68,0.00029043,2]
[328343880,1717197033101,-8149.0,0.00029097,3]
[328343881,1717197033110,-167.34,0.00029114,2]
[328343882,1717197033120,-167.0,0.0002913,2]
[328343883,1717197033129,-1000.0,0.00029455,2]
[328343884,1717197033138,-346.59123551,0.00029602,2]
[328343885,1717197033147,-800.0,0.00029699,2]
[328343886,1717197033158,-1000.0,0.000298,2]
[328343887,1717197033168,-2008.28901866,0.000299,2]
[328343888,1717197033177,-1034.0,0.00029975,2]
[328343889,1717197033186,-186.6744388,0.00030011,2]
[328343890,1717197033195,-167.0,0.00030111,2]
[328343891,1717197033204,-200.0,0.00030137,2]
[328343892,1717197033213,-200.0,0.00030137,2]
[328343893,1717197033222,-500.0,0.00030263,2]
[328343894,1717197033231,-200.0,0.00030263,2]
[328343895,1717197033240,-172.401164,0.0003036,2]
[328343896,1717197033250,-173.321194,0.0003036,2]
[328343897,1717197033259,-227.105825,0.0003036,2]
[328343898,1717197033268,-227.105824,0.0003036,2]
[328343899,1717197033278,-172.401163,0.0003036,2]
[328343900,1717197033287,-173.321194,0.0003036,2]
[328343901,1717197033296,-172.401164,0.0003036,2]
[328343902,1717197033306,-152.443874,0.0003036,2]
[328343903,1717197033315,-227.105825,0.0003036,2]
[328343904,1717197033324,-194.198513,0.0003036,2]
[328343905,1717197033334,-1250.14015,0.000304,2]
[328343906,1717197033343,-416.48,0.00030411,2]
[328343907,1717197033359,-871.61,0.00030411,2]
[328343908,1717197033368,-871.61,0.00030411,2]
[328343909,1717197033377,-416.48,0.00030411,2]
[328343910,1717197033387,-414.14,0.00030411,2]
[328343911,1717197033396,-871.61,0.00030411,2]
[328343912,1717197033405,-503.99,0.00030411,2]
[328343913,1717197033415,-10677.48,0.000305,5]
[328343914,1717197033425,-255.14873993,0.000305,3]
[328343915,1717197033434,-11721.0,0.000305,5]
[328343916,1717197033443,-1000.0,0.000306,2]
[328343917,1717197033452,-151.0,0.00030692,7]
[328343918,1717197033462,-227.105825,0.00030739,2]
[328343919,1717197033471,-227.105824,0.00030739,2]
[328343920,1717197033480,-227.105825,0.00030739,2]
[328343921,1717197033489,-525.17,0.00030822,2]
[328343922,1717197033499,-525.17,0.00030822,2]
[328343923,1717197033508,-525.17,0.00030822,2]
[328343924,1717197033517,-517.57,0.00030822,2]
[328343925,1717197033527,-435.67,0.00030884,2]
[328343926,1717197033536,-167.0,0.00030989,2]
[328343927,1717197033545,-1200.0,0.00031,2]
[328343928,1717197033554,-292.35378627,0.00031012,7]
[328343929,1717197033564,-164.33056681,0.00031013,7]
[328343930,1717197033573,-150.0,0.00031025,7]
[328343931,1717197033583,-162.87470479,0.00031031,7]
[328343932,1717197033592,-367.0,0.00031033,5]